[Event "Titled Tuesday Blitz April 18 Late 2023"]
[White "Zarnicki, Pablo"]
[Black "Gonzalez, Francisco Silva"]
[WhiteFideId "100137"]
[BlackFideId "1512285"]
[WhiteElo "2468"]
[BlackElo "2074"]
[Result "1/2-1/2"]
[Round "10"]
[TimeControl "180+2"]
[Date "2023.04.18"]
[WhiteClock "0:00:04"]
[BlackClock "0:00:13"]

1. e4 {[%clk 0:02:43]}  e5 {[%clk 0:02:59]} 2. Nf3 {[%clk 0:02:42]}  Nc6 {[%clk 0:02:59]} 3. Bb5 {[%clk 0:02:38]}  a6 {[%clk 0:03:00]} 4. Ba4 {[%clk 0:02:31]}  Nf6 {[%clk 0:03:00]} 5. O-O {[%clk 0:02:22]}  b5 {[%clk 0:03:00]} 6. Bb3 {[%clk 0:02:21]}  Bc5 {[%clk 0:03:01]} 7. d3 {[%clk 0:02:20]}  d6 {[%clk 0:03:00]} 8. a4 {[%clk 0:02:20]}  Bb7 {[%clk 0:02:59]} 9. axb5 {[%clk 0:02:12]}  axb5 {[%clk 0:02:58]} 10. Rxa8 {[%clk 0:02:13]}  Bxa8 {[%clk 0:02:59]} 11. Bg5 {[%clk 0:02:12]}  h6 {[%clk 0:02:58]} 12. Bxf6 {[%clk 0:02:11]}  Qxf6 {[%clk 0:02:57]} 13. Nc3 {[%clk 0:02:11]}  b4 {[%clk 0:02:50]} 14. Nd5 {[%clk 0:02:09]}  Qd8 {[%clk 0:02:51]} 15. c3 {[%clk 0:02:09]}  bxc3 {[%clk 0:02:50]} 16. bxc3 {[%clk 0:02:10]}  O-O {[%clk 0:02:50]} 17. d4 {[%clk 0:02:09]}  exd4 {[%clk 0:02:46]} 18. cxd4 {[%clk 0:02:08]}  Ba7 {[%clk 0:02:45]} 19. Qd3 {[%clk 0:01:43]}  Ne7 {[%clk 0:02:42]} 20. Nxe7+ {[%clk 0:01:27]}  Qxe7 {[%clk 0:02:40]} 21. Re1 {[%clk 0:01:27]}  Bb6 {[%clk 0:02:39]} 22. h3 {[%clk 0:01:21]}  Qf6 {[%clk 0:02:36]} 23. Bd5 {[%clk 0:01:17]}  Bxd5 {[%clk 0:02:31]} 24. exd5 {[%clk 0:01:16]}  Ra8 {[%clk 0:02:29]} 25. g3 {[%clk 0:01:02]}  g6 {[%clk 0:02:24]} 26. Kg2 {[%clk 0:00:59]}  Ra2 {[%clk 0:02:22]} 27. h4 {[%clk 0:00:55]}  Kg7 {[%clk 0:02:03]} 28. Re2 {[%clk 0:00:54]}  Rxe2 {[%clk 0:02:00]} 29. Qxe2 {[%clk 0:00:53]}  Bxd4 {[%clk 0:02:00]} 30. Qe4 {[%clk 0:00:51]}  Bb6 {[%clk 0:01:57]} 31. h5 {[%clk 0:00:50]}  g5 {[%clk 0:01:54]} 32. g4 {[%clk 0:00:48]}  Qb2 {[%clk 0:01:48]} 33. Qe1 {[%clk 0:00:41]}  Qf6 {[%clk 0:01:39]} 34. Qd2 {[%clk 0:00:40]}  Bc5 {[%clk 0:01:28]} 35. Nh2 {[%clk 0:00:40]}  Qe5 {[%clk 0:01:26]} 36. Nf1 {[%clk 0:00:40]}  Qe4+ {[%clk 0:01:25]} 37. f3 {[%clk 0:00:36]}  Qd4 {[%clk 0:01:21]} 38. Qxd4+ {[%clk 0:00:36]}  Bxd4 {[%clk 0:01:21]} 39. Ng3 {[%clk 0:00:37]}  Kh7 {[%clk 0:01:21]} 40. Nf5 {[%clk 0:00:38]}  Bb6 {[%clk 0:01:13]} 41. Kf1 {[%clk 0:00:38]}  Ba5 {[%clk 0:01:11]} 42. Ke2 {[%clk 0:00:39]}  Bb6 {[%clk 0:01:11]} 43. Kd3 {[%clk 0:00:39]}  Ba5 {[%clk 0:01:10]} 44. Kc4 {[%clk 0:00:40]}  Bb6 {[%clk 0:01:09]} 45. Kb5 {[%clk 0:00:41]}  Bc5 {[%clk 0:01:07]} 46. Kc6 {[%clk 0:00:41]}  Bb6 {[%clk 0:01:07]} 47. Kd7 {[%clk 0:00:34]}  Kg8 {[%clk 0:01:06]} 48. Nxh6+ {[%clk 0:00:33]}  Kg7 {[%clk 0:01:06]} 49. Nf5+ {[%clk 0:00:34]}  Kf6 {[%clk 0:01:06]} 50. h6 {[%clk 0:00:33]}  Kg6 {[%clk 0:01:02]} 51. Ke8 {[%clk 0:00:34]}  Ba5 {[%clk 0:00:59]} 52. Kf8 {[%clk 0:00:33]}  Kh7 {[%clk 0:00:54]} 53. Kxf7 {[%clk 0:00:33]}  Bc3 {[%clk 0:00:54]} 54. Ke6 {[%clk 0:00:33]}  Kg6 {[%clk 0:00:53]} 55. Kd7 {[%clk 0:00:33]}  Ba5 {[%clk 0:00:52]} 56. Kc6 {[%clk 0:00:34]}  Kh7 {[%clk 0:00:49]} 57. Kb5 {[%clk 0:00:34]}  Bc3 {[%clk 0:00:48]} 58. Kc4 {[%clk 0:00:33]}  Ba5 {[%clk 0:00:48]} 59. Kd3 {[%clk 0:00:33]}  Kg6 {[%clk 0:00:48]} 60. Ke4 {[%clk 0:00:33]}  Bc3 {[%clk 0:00:48]} 61. f4 {[%clk 0:00:33]}  gxf4 {[%clk 0:00:47]} 62. Kxf4 {[%clk 0:00:34]}  Be5+ {[%clk 0:00:48]} 63. Ke4 {[%clk 0:00:32]}  Kg5 {[%clk 0:00:48]} 64. Ne7 {[%clk 0:00:18]}  Kxg4 {[%clk 0:00:44]} 65. Ng6 {[%clk 0:00:17]}  Bf6 {[%clk 0:00:25]} 66. h7 {[%clk 0:00:16]}  Kg5 {[%clk 0:00:25]} 67. h8=Q {[%clk 0:00:15]}  Bxh8 {[%clk 0:00:25]} 68. Nxh8 {[%clk 0:00:16]}  Kf6 {[%clk 0:00:25]} 69. Kd4 {[%clk 0:00:10]}  Ke7 {[%clk 0:00:16]} 70. Ng6+ {[%clk 0:00:08]}  Kd7 {[%clk 0:00:16]} 71. Nf8+ {[%clk 0:00:08]}  Ke7 {[%clk 0:00:14]} 72. Ng6+ {[%clk 0:00:06]}  Kd7 {[%clk 0:00:15]} 73. Nf8+ {[%clk 0:00:03]}  Ke7 {[%clk 0:00:15]} 74. Ne6 {[%clk 0:00:01]}  c6 {[%clk 0:00:14]} 75. Nc7 {[%clk 0:00:01]}  cxd5 {[%clk 0:00:13]} 76. Nxd5+ {[%clk 0:00:02]}  Ke6 {[%clk 0:00:13]} 77. Ke4 {[%clk 0:00:03]}  Kd7 {[%clk 0:00:13]} 78. Nf4 {[%clk 0:00:04]}  Kc6 {[%clk 0:00:13]} 79. Kd4 {[%clk 0:00:04]}  d5 {[%clk 0:00:13]} 80. Nxd5 {[%clk 0:00:04]} 1/2-1/2


[Site "https://www.chess.com"]

[Event "Titled Tuesday Blitz April 18 Late 2023"]
[White "Graif, William"]
[Black "Barria Santos, Jose Guilherme"]
[WhiteFideId "2609835"]
[BlackFideId "1939300"]
[WhiteElo "2205"]
[BlackElo "2266"]
[Result "0-1"]
[Round "10"]
[TimeControl "180+2"]
[Date "2023.04.18"]
[WhiteClock "0:00:03"]
[BlackClock "0:01:12"]

1. e4 {[%clk 0:03:00]}  c5 {[%clk 0:03:00]} 2. Nc3 {[%clk 0:03:00]}  d6 {[%clk 0:03:00]} 3. f4 {[%clk 0:02:58]}  g6 {[%clk 0:03:00]} 4. Nf3 {[%clk 0:02:57]}  Bg7 {[%clk 0:03:00]} 5. Bc4 {[%clk 0:02:57]}  e6 {[%clk 0:03:00]} 6. d4 {[%clk 0:02:53]}  cxd4 {[%clk 0:02:59]} 7. Nxd4 {[%clk 0:02:54]}  Nc6 {[%clk 0:02:59]} 8. Ndb5 {[%clk 0:02:42]}  Bf8 {[%clk 0:02:45]} 9. O-O {[%clk 0:02:25]}  a6 {[%clk 0:02:45]} 10. Nd4 {[%clk 0:02:20]}  Bg7 {[%clk 0:02:44]} 11. Nxc6 {[%clk 0:02:12]}  bxc6 {[%clk 0:02:44]} 12. Bb3 {[%clk 0:01:51]}  Ne7 {[%clk 0:02:44]} 13. Be3 {[%clk 0:01:48]}  O-O {[%clk 0:02:44]} 14. Qf3 {[%clk 0:01:42]}  d5 {[%clk 0:02:41]} 15. Bc5 {[%clk 0:01:40]}  Qc7 {[%clk 0:02:35]} 16. Rad1 {[%clk 0:01:29]}  a5 {[%clk 0:02:30]} 17. a4 {[%clk 0:01:10]}  Re8 {[%clk 0:02:29]} 18. Kh1 {[%clk 0:01:07]}  Ba6 {[%clk 0:02:29]} 19. Rf2 {[%clk 0:01:05]}  Rad8 {[%clk 0:02:20]} 20. Qe3 {[%clk 0:00:53]}  Rb8 {[%clk 0:02:17]} 21. Re1 {[%clk 0:00:41]}  Nc8 {[%clk 0:02:16]} 22. Qd2 {[%clk 0:00:33]}  Nd6 {[%clk 0:02:10]} 23. e5 {[%clk 0:00:18]}  Nf5 {[%clk 0:02:03]} 24. g4 {[%clk 0:00:18]}  Nh4 {[%clk 0:01:44]} 25. Bd6 {[%clk 0:00:19]}  Qb6 {[%clk 0:01:40]} 26. Bxb8 {[%clk 0:00:19]}  Rxb8 {[%clk 0:01:36]} 27. Nd1 {[%clk 0:00:19]}  c5 {[%clk 0:01:32]} 28. f5 {[%clk 0:00:17]}  c4 {[%clk 0:01:28]} 29. f6 {[%clk 0:00:15]}  Bb7 {[%clk 0:01:21]} 30. fxg7 {[%clk 0:00:14]}  d4+ {[%clk 0:01:21]} 31. Kg1 {[%clk 0:00:15]}  Qc6 {[%clk 0:01:17]} 32. Rxf7 {[%clk 0:00:03]}  Qh1+ {[%clk 0:01:11]} 33. Kf2 {[%clk 0:00:03]}  Qg2# {[%clk 0:01:12]} 0-1


[Site "https://www.chess.com"]

[Event "Titled Tuesday Blitz April 18 Late 2023"]
[White "Kozin, Yuri"]
[Black "Shapiro, Viktor"]
[WhiteFideId "4129920"]
[BlackFideId "4175700"]
[WhiteElo "2607"]
[BlackElo "2152"]
[Result "0-1"]
[Round "10"]
[TimeControl "180+2"]
[Date "2023.04.18"]
[WhiteClock "0:00:01"]
[BlackClock "0:00:18"]

1. e4 {[%clk 0:03:00]}  Nf6 {[%clk 0:02:59]} 2. e5 {[%clk 0:03:00]}  Nd5 {[%clk 0:03:00]} 3. d4 {[%clk 0:03:00]}  d6 {[%clk 0:03:00]} 4. Nf3 {[%clk 0:03:01]}  Bg4 {[%clk 0:03:00]} 5. exd6 {[%clk 0:03:01]}  cxd6 {[%clk 0:03:00]} 6. Be2 {[%clk 0:03:01]}  e6 {[%clk 0:03:00]} 7. h3 {[%clk 0:03:02]}  Bh5 {[%clk 0:03:00]} 8. O-O {[%clk 0:03:02]}  Be7 {[%clk 0:03:00]} 9. c3 {[%clk 0:03:02]}  O-O {[%clk 0:03:00]} 10. Qb3 {[%clk 0:03:01]}  Qc7 {[%clk 0:02:56]} 11. a4 {[%clk 0:02:54]}  Nc6 {[%clk 0:02:55]} 12. Na3 {[%clk 0:02:53]}  a6 {[%clk 0:02:54]} 13. Nc4 {[%clk 0:02:48]}  b6 {[%clk 0:02:24]} 14. Re1 {[%clk 0:02:39]}  Rfb8 {[%clk 0:02:23]} 15. Bd2 {[%clk 0:02:14]}  h6 {[%clk 0:02:20]} 16. Ne3 {[%clk 0:01:57]}  Nf4 {[%clk 0:02:17]} 17. Bd1 {[%clk 0:01:57]}  Na5 {[%clk 0:02:01]} 18. Qa2 {[%clk 0:01:52]}  Nd3 {[%clk 0:01:54]} 19. Rf1 {[%clk 0:01:49]}  d5 {[%clk 0:01:53]} 20. Ng4 {[%clk 0:01:39]}  Bxg4 {[%clk 0:01:41]} 21. hxg4 {[%clk 0:01:40]}  b5 {[%clk 0:01:42]} 22. axb5 {[%clk 0:01:23]}  axb5 {[%clk 0:01:42]} 23. g3 {[%clk 0:00:56]}  b4 {[%clk 0:01:02]} 24. Qb1 {[%clk 0:00:32]}  bxc3 {[%clk 0:00:57]} 25. Bxc3 {[%clk 0:00:27]}  Nb4 {[%clk 0:00:52]} 26. Ra4 {[%clk 0:00:22]}  Nc4 {[%clk 0:00:48]} 27. Qa1 {[%clk 0:00:18]}  Rxa4 {[%clk 0:00:42]} 28. Qxa4 {[%clk 0:00:19]}  Nc6 {[%clk 0:00:41]} 29. Qc2 {[%clk 0:00:17]}  Qb6 {[%clk 0:00:35]} 30. Be2 {[%clk 0:00:14]}  Nb4 {[%clk 0:00:21]} 31. Qb3 {[%clk 0:00:12]}  Na5 {[%clk 0:00:19]} 32. Qa4 {[%clk 0:00:11]}  Bf8 {[%clk 0:00:19]} 33. Ra1 {[%clk 0:00:11]}  Nac6 {[%clk 0:00:19]} 34. Bxb4 {[%clk 0:00:07]}  Nxb4 {[%clk 0:00:19]} 35. Qb3 {[%clk 0:00:07]}  Qc7 {[%clk 0:00:19]} 36. Ne5 {[%clk 0:00:06]}  Bd6 {[%clk 0:00:19]} 37. f4 {[%clk 0:00:06]}  g5 {[%clk 0:00:19]} 38. Qc3 {[%clk 0:00:04]}  gxf4 {[%clk 0:00:18]} 39. gxf4 {[%clk 0:00:03]}  Rc8 {[%clk 0:00:17]} 40. Qxc7 {[%clk 0:00:02]}  Rxc7 {[%clk 0:00:18]} 41. Ra8+ {[%clk 0:00:02]}  Kg7 {[%clk 0:00:18]} 42. Bf3 {[%clk 0:00:01]}  Nc2 {[%clk 0:00:18]} 0-1


[Site "https://www.chess.com"]

[Event "Titled Tuesday Blitz April 18 Late 2023"]
[White "Seletsky, Grigory"]
[Black "Fiorito, Francisco"]
[WhiteFideId "14112191"]
[BlackFideId "180165"]
[WhiteElo "2490"]
[BlackElo "2341"]
[Result "1-0"]
[Round "10"]
[TimeControl "180+2"]
[Date "2023.04.18"]
[WhiteClock "0:01:37"]
[BlackClock "0:01:50"]

1. e4 {[%clk 0:02:59]}  c5 {[%clk 0:02:59]} 2. Nc3 {[%clk 0:02:57]}  Nc6 {[%clk 0:02:59]} 3. d3 {[%clk 0:02:58]}  g6 {[%clk 0:02:59]} 4. Be3 {[%clk 0:02:59]}  d6 {[%clk 0:02:59]} 5. d4 {[%clk 0:02:59]}  cxd4 {[%clk 0:02:59]} 6. Bxd4 {[%clk 0:03:00]}  Nxd4 {[%clk 0:02:58]} 7. Qxd4 {[%clk 0:03:00]}  Nf6 {[%clk 0:02:58]} 8. e5 {[%clk 0:02:59]}  dxe5 {[%clk 0:02:57]} 9. Bb5+ {[%clk 0:02:59]}  Bd7 {[%clk 0:02:58]} 10. Qxe5 {[%clk 0:03:00]}  Bg7 {[%clk 0:02:55]} 11. O-O-O {[%clk 0:02:58]}  Kf8 {[%clk 0:02:30]} 12. Bxd7 {[%clk 0:02:45]}  Nxd7 {[%clk 0:02:29]} 13. Qb5 {[%clk 0:02:37]}  Ke8 {[%clk 0:02:24]} 14. Nge2 {[%clk 0:02:26]}  a6 {[%clk 0:02:23]} 15. Qxb7 {[%clk 0:02:22]}  Rb8 {[%clk 0:02:21]} 16. Qxa6 {[%clk 0:02:07]}  e6 {[%clk 0:02:18]} 17. Rd3 {[%clk 0:01:59]}  Ra8 {[%clk 0:02:17]} 18. Qb5 {[%clk 0:01:54]}  Rb8 {[%clk 0:02:17]} 19. Rxd7 {[%clk 0:01:47]}  Qxd7 {[%clk 0:01:48]} 20. Qxb8+ {[%clk 0:01:45]}  Ke7 {[%clk 0:01:49]} 21. Qb4+ {[%clk 0:01:43]}  Ke8 {[%clk 0:01:49]} 22. Rd1 {[%clk 0:01:40]}  Bf8 {[%clk 0:01:50]} 23. Qb8+ {[%clk 0:01:37]} 1-0


[Site "https://www.chess.com"]

[Event "Titled Tuesday Blitz April 18 Late 2023"]
[White "Moral Garcia, Serafin"]
[Black "Golubev, Mikhail"]
[WhiteFideId "2201925"]
[BlackFideId "14100983"]
[WhiteElo "2274"]
[BlackElo "2374"]
[Result "1-0"]
[Round "10"]
[TimeControl "180+2"]
[Date "2023.04.18"]
[WhiteClock "0:00:17"]
[BlackClock "0:00:01"]

1. e4 {[%clk 0:02:57]}  c5 {[%clk 0:02:59]} 2. Nf3 {[%clk 0:02:57]}  d6 {[%clk 0:02:59]} 3. d4 {[%clk 0:02:57]}  cxd4 {[%clk 0:02:58]} 4. Nxd4 {[%clk 0:02:57]}  Nf6 {[%clk 0:02:58]} 5. Nc3 {[%clk 0:02:58]}  g6 {[%clk 0:02:58]} 6. Be3 {[%clk 0:02:58]}  Bg7 {[%clk 0:02:59]} 7. f3 {[%clk 0:02:58]}  a6 {[%clk 0:02:57]} 8. Qd2 {[%clk 0:02:57]}  h5 {[%clk 0:02:57]} 9. O-O-O {[%clk 0:02:56]}  Nbd7 {[%clk 0:02:56]} 10. Kb1 {[%clk 0:02:55]}  Qc7 {[%clk 0:02:56]} 11. Bg5 {[%clk 0:02:54]}  b5 {[%clk 0:02:52]} 12. Nd5 {[%clk 0:02:40]}  Nxd5 {[%clk 0:02:52]} 13. exd5 {[%clk 0:02:40]}  Nf6 {[%clk 0:02:51]} 14. Nc6 {[%clk 0:02:37]}  e5 {[%clk 0:02:14]} 15. c4 {[%clk 0:02:17]}  O-O {[%clk 0:02:04]} 16. Rc1 {[%clk 0:02:09]}  bxc4 {[%clk 0:01:06]} 17. Bxc4 {[%clk 0:02:07]}  Qd7 {[%clk 0:01:06]} 18. Ka1 {[%clk 0:02:04]}  Bb7 {[%clk 0:01:04]} 19. Bb3 {[%clk 0:02:00]}  Rac8 {[%clk 0:01:01]} 20. Ba4 {[%clk 0:01:59]}  Kh7 {[%clk 0:00:46]} 21. Rc4 {[%clk 0:01:52]}  Nxd5 {[%clk 0:00:40]} 22. Qxd5 {[%clk 0:01:48]}  Rc7 {[%clk 0:00:24]} 23. Rhc1 {[%clk 0:01:40]}  Rfc8 {[%clk 0:00:24]} 24. Be3 {[%clk 0:01:37]}  Qf5 {[%clk 0:00:22]} 25. Bb6 {[%clk 0:01:31]}  Rd7 {[%clk 0:00:20]} 26. Qd1 {[%clk 0:01:23]}  Qg5 {[%clk 0:00:19]} 27. Na5 {[%clk 0:01:11]}  Rxc4 {[%clk 0:00:18]} 28. Rxc4 {[%clk 0:01:09]}  Re7 {[%clk 0:00:17]} 29. g3 {[%clk 0:01:03]}  e4 {[%clk 0:00:16]} 30. f4 {[%clk 0:00:58]}  Qf5 {[%clk 0:00:16]} 31. Qxd6 {[%clk 0:00:46]}  Re6 {[%clk 0:00:10]} 32. Qc5 {[%clk 0:00:41]}  e3 {[%clk 0:00:10]} 33. Qxf5 {[%clk 0:00:33]}  gxf5 {[%clk 0:00:10]} 34. Rc1 {[%clk 0:00:29]}  Rxb6 {[%clk 0:00:09]} 35. Nc4 {[%clk 0:00:24]}  Rb4 {[%clk 0:00:09]} 36. Bb3 {[%clk 0:00:20]}  e2 {[%clk 0:00:09]} 37. Re1 {[%clk 0:00:20]}  Bf3 {[%clk 0:00:09]} 38. Nd2 {[%clk 0:00:20]}  Bg4 {[%clk 0:00:08]} 39. Kb1 {[%clk 0:00:20]}  Rd4 {[%clk 0:00:07]} 40. Kc2 {[%clk 0:00:20]}  Rd8 {[%clk 0:00:07]} 41. Bc4 {[%clk 0:00:20]}  a5 {[%clk 0:00:06]} 42. b3 {[%clk 0:00:20]}  Bd4 {[%clk 0:00:05]} 43. Bxe2 {[%clk 0:00:20]}  Bf2 {[%clk 0:00:06]} 44. Rf1 {[%clk 0:00:19]}  Bxe2 {[%clk 0:00:04]} 45. Rxf2 {[%clk 0:00:20]}  Bd3+ {[%clk 0:00:04]} 46. Kb2 {[%clk 0:00:20]}  Rc8 {[%clk 0:00:04]} 47. Nf3 {[%clk 0:00:19]}  f6 {[%clk 0:00:03]} 48. Nd4 {[%clk 0:00:19]}  Be4 {[%clk 0:00:03]} 49. Rd2 {[%clk 0:00:19]}  Kg6 {[%clk 0:00:03]} 50. Nc2 {[%clk 0:00:19]}  h4 {[%clk 0:00:03]} 51. Ne3 {[%clk 0:00:19]}  hxg3 {[%clk 0:00:03]} 52. hxg3 {[%clk 0:00:20]}  Rh8 {[%clk 0:00:03]} 53. Nc4 {[%clk 0:00:20]}  a4 {[%clk 0:00:02]} 54. bxa4 {[%clk 0:00:19]}  Rh3 {[%clk 0:00:03]} 55. a5 {[%clk 0:00:17]}  Rxg3 {[%clk 0:00:03]} 56. Nd6 {[%clk 0:00:17]}  Bh1 {[%clk 0:00:01]} 57. a6 {[%clk 0:00:17]}  Rg4 {[%clk 0:00:01]} 58. Rd4 {[%clk 0:00:17]}  Rg2+ {[%clk 0:00:01]} 59. Ka3 {[%clk 0:00:17]} 1-0


[Site "https://www.chess.com"]

[Event "Titled Tuesday Blitz April 18 Late 2023"]
[White "Mikhalsky, Vladimir"]
[Black "Fajdetic, Hrvoje"]
[WhiteFideId "14144352"]
[BlackFideId "14501945"]
[WhiteElo "2236"]
[BlackElo "2185"]
[Result "1-0"]
[Round "10"]
[TimeControl "180+2"]
[Date "2023.04.18"]
[WhiteClock "0:00:21"]
[BlackClock "0:00:07"]

1. d4 {[%clk 0:03:00]}  e6 {[%clk 0:02:56]} 2. g3 {[%clk 0:02:58]}  f5 {[%clk 0:02:56]} 3. c4 {[%clk 0:02:58]}  Nf6 {[%clk 0:02:56]} 4. Bg2 {[%clk 0:02:57]}  d6 {[%clk 0:02:54]} 5. Nc3 {[%clk 0:02:56]}  Be7 {[%clk 0:02:51]} 6. e4 {[%clk 0:02:55]}  e5 {[%clk 0:02:48]} 7. dxe5 {[%clk 0:02:51]}  dxe5 {[%clk 0:02:49]} 8. Qxd8+ {[%clk 0:02:50]}  Bxd8 {[%clk 0:02:49]} 9. Nf3 {[%clk 0:02:50]}  Nc6 {[%clk 0:02:40]} 10. O-O {[%clk 0:02:48]}  O-O {[%clk 0:02:38]} 11. Re1 {[%clk 0:02:30]}  Nxe4 {[%clk 0:02:31]} 12. Nxe4 {[%clk 0:02:29]}  fxe4 {[%clk 0:02:32]} 13. Ng5 {[%clk 0:02:23]}  Bxg5 {[%clk 0:02:22]} 14. Bxg5 {[%clk 0:02:22]}  Bf5 {[%clk 0:02:21]} 15. Bxe4 {[%clk 0:02:20]}  Bxe4 {[%clk 0:02:22]} 16. Rxe4 {[%clk 0:02:19]}  h6 {[%clk 0:02:21]} 17. Be3 {[%clk 0:02:17]}  Rad8 {[%clk 0:02:20]} 18. c5 {[%clk 0:02:13]}  a6 {[%clk 0:02:07]} 19. b4 {[%clk 0:02:12]}  Rd5 {[%clk 0:02:04]} 20. a4 {[%clk 0:01:55]}  Rfd8 {[%clk 0:02:01]} 21. Kg2 {[%clk 0:01:53]}  Kf7 {[%clk 0:01:49]} 22. Rc1 {[%clk 0:01:51]}  Nd4 {[%clk 0:01:35]} 23. h4 {[%clk 0:01:44]}  Kf6 {[%clk 0:01:03]} 24. h5 {[%clk 0:01:36]}  Ne6 {[%clk 0:00:58]} 25. c6 {[%clk 0:01:30]}  b6 {[%clk 0:00:56]} 26. Rg4 {[%clk 0:01:16]}  Rd3 {[%clk 0:00:33]} 27. Ra1 {[%clk 0:00:49]}  Rb3 {[%clk 0:00:29]} 28. Rc4 {[%clk 0:00:39]}  Rdd3 {[%clk 0:00:21]} 29. a5 {[%clk 0:00:33]}  b5 {[%clk 0:00:20]} 30. Rg4 {[%clk 0:00:32]}  Rb2 {[%clk 0:00:16]} 31. Kh3 {[%clk 0:00:29]}  Rdb3 {[%clk 0:00:14]} 32. Rg6+ {[%clk 0:00:24]}  Kf7 {[%clk 0:00:12]} 33. Rd1 {[%clk 0:00:22]}  Ke7 {[%clk 0:00:09]} 34. Rd7+ {[%clk 0:00:21]}  Ke8 {[%clk 0:00:08]} 35. Rxe6+ {[%clk 0:00:21]}  Kf8 {[%clk 0:00:07]} 36. Bc5+ {[%clk 0:00:21]}  Kg8 {[%clk 0:00:07]} 37. Re8+ {[%clk 0:00:22]}  Kh7 {[%clk 0:00:07]} 38. Rdd8 {[%clk 0:00:21]} 1-0


[Site "https://www.chess.com"]

[Event "Titled Tuesday Blitz April 18 Late 2023"]
[White "Volkmann, Andre Jordi"]
[Black "Goncalves, Davi Sulzbacher"]
[WhiteFideId "2154463"]
[BlackFideId "2154510"]
[WhiteElo "1999"]
[BlackElo "2182"]
[Result "1-0"]
[Round "10"]
[TimeControl "180+2"]
[Date "2023.04.18"]
[WhiteClock "0:00:42"]
[BlackClock "0:00:01"]

1. d4 {[%clk 0:03:00]}  Nf6 {[%clk 0:02:27]} 2. c4 {[%clk 0:03:00]}  e6 {[%clk 0:02:28]} 3. Nc3 {[%clk 0:02:59]}  Bb4 {[%clk 0:02:26]} 4. Bd2 {[%clk 0:02:59]}  O-O {[%clk 0:02:26]} 5. e3 {[%clk 0:02:59]}  b6 {[%clk 0:02:25]} 6. Bd3 {[%clk 0:02:57]}  Bb7 {[%clk 0:02:25]} 7. Nf3 {[%clk 0:02:58]}  c5 {[%clk 0:02:25]} 8. O-O {[%clk 0:02:57]}  cxd4 {[%clk 0:02:23]} 9. exd4 {[%clk 0:02:54]}  d5 {[%clk 0:02:20]} 10. cxd5 {[%clk 0:02:54]}  Nxd5 {[%clk 0:02:16]} 11. Nxd5 {[%clk 0:02:54]}  Bxd2 {[%clk 0:02:17]} 12. Qxd2 {[%clk 0:02:40]}  Bxd5 {[%clk 0:02:11]} 13. Qf4 {[%clk 0:02:33]}  Nd7 {[%clk 0:01:41]} 14. Rac1 {[%clk 0:02:18]}  Rc8 {[%clk 0:01:36]} 15. Rxc8 {[%clk 0:01:46]}  Qxc8 {[%clk 0:01:37]} 16. Qh4 {[%clk 0:01:46]}  h6 {[%clk 0:01:30]} 17. Ne5 {[%clk 0:01:43]}  Bxa2 {[%clk 0:00:59]} 18. Nxd7 {[%clk 0:01:21]}  Qxd7 {[%clk 0:00:58]} 19. Qe4 {[%clk 0:01:22]}  g6 {[%clk 0:00:57]} 20. Ra1 {[%clk 0:01:18]}  Bd5 {[%clk 0:00:57]} 21. Qf4 {[%clk 0:01:16]}  Rc8 {[%clk 0:00:55]} 22. Qxh6 {[%clk 0:01:12]}  a5 {[%clk 0:00:18]} 23. h3 {[%clk 0:01:11]}  Qb7 {[%clk 0:00:16]} 24. Ra3 {[%clk 0:01:03]}  Bxg2 {[%clk 0:00:13]} 25. Bxg6 {[%clk 0:01:03]}  Rc1+ {[%clk 0:00:13]} 26. Qxc1 {[%clk 0:00:59]}  fxg6 {[%clk 0:00:07]} 27. Rg3 {[%clk 0:00:59]}  Be4 {[%clk 0:00:07]} 28. Qf4 {[%clk 0:00:56]}  Qd5 {[%clk 0:00:03]} 29. Qb8+ {[%clk 0:00:53]}  Kg7 {[%clk 0:00:02]} 30. Qc7+ {[%clk 0:00:51]}  Kh6 {[%clk 0:00:03]} 31. Qxb6 {[%clk 0:00:48]}  Bf5 {[%clk 0:00:02]} 32. Qc5 {[%clk 0:00:45]}  Qa2 {[%clk 0:00:02]} 33. Qc1+ {[%clk 0:00:43]}  Kh7 {[%clk 0:00:01]} 34. Rc3 {[%clk 0:00:42]} 1-0


[Site "https://www.chess.com"]

[Event "Titled Tuesday Blitz April 18 Late 2023"]
[White "D`Arruda, Ricardo D."]
[Black "ayme97"]
[WhiteFideId "100692"]
[WhiteElo "2473"]
[BlackElo "2244"]
[Result "1/2-1/2"]
[Round "10"]
[TimeControl "180+2"]
[Date "2023.04.18"]
[WhiteClock "0:00:12"]
[BlackClock "0:00:09"]

1. d4 {[%clk 0:02:44]}  Nf6 {[%clk 0:02:57]} 2. Nf3 {[%clk 0:02:44]}  g6 {[%clk 0:02:57]} 3. Nc3 {[%clk 0:02:45]}  d5 {[%clk 0:02:54]} 4. Bg5 {[%clk 0:02:45]}  Bg7 {[%clk 0:02:54]} 5. Bxf6 {[%clk 0:02:45]}  Bxf6 {[%clk 0:02:50]} 6. e4 {[%clk 0:02:45]}  c6 {[%clk 0:02:46]} 7. Bd3 {[%clk 0:02:44]}  O-O {[%clk 0:02:45]} 8. e5 {[%clk 0:02:44]}  Bg7 {[%clk 0:02:45]} 9. Ne2 {[%clk 0:02:44]}  Bg4 {[%clk 0:02:44]} 10. c3 {[%clk 0:02:41]}  Bxf3 {[%clk 0:02:41]} 11. gxf3 {[%clk 0:02:42]}  f6 {[%clk 0:02:40]} 12. f4 {[%clk 0:02:41]}  f5 {[%clk 0:02:35]} 13. h4 {[%clk 0:02:40]}  c5 {[%clk 0:02:34]} 14. h5 {[%clk 0:02:39]}  e6 {[%clk 0:02:26]} 15. Qd2 {[%clk 0:02:32]}  Qa5 {[%clk 0:02:17]} 16. hxg6 {[%clk 0:02:28]}  hxg6 {[%clk 0:02:13]} 17. Rg1 {[%clk 0:02:27]}  Kf7 {[%clk 0:02:13]} 18. Qe3 {[%clk 0:02:27]}  Rh8 {[%clk 0:02:07]} 19. dxc5 {[%clk 0:02:22]}  Bf8 {[%clk 0:01:53]} 20. b4 {[%clk 0:02:03]}  Qa3 {[%clk 0:01:51]} 21. Kf1 {[%clk 0:01:48]}  a5 {[%clk 0:01:49]} 22. Rb1 {[%clk 0:01:42]}  axb4 {[%clk 0:01:41]} 23. Rxb4 {[%clk 0:01:41]}  Ra7 {[%clk 0:01:41]} 24. Nd4 {[%clk 0:01:29]}  Bxc5 {[%clk 0:01:35]} 25. Qg3 {[%clk 0:01:28]}  Rg8 {[%clk 0:01:27]} 26. Nb5 {[%clk 0:01:21]}  Qa5 {[%clk 0:01:02]} 27. Nd6+ {[%clk 0:01:11]}  Bxd6 {[%clk 0:00:53]} 28. exd6 {[%clk 0:01:12]}  Nc6 {[%clk 0:00:53]} 29. Rb1 {[%clk 0:00:47]}  Qxc3 {[%clk 0:00:48]} 30. Rh1 {[%clk 0:00:41]}  Rg7 {[%clk 0:00:45]} 31. d7 {[%clk 0:00:40]}  Rxa2 {[%clk 0:00:29]} 32. Rxb7 {[%clk 0:00:30]}  Nd8 {[%clk 0:00:26]} 33. Rb8 {[%clk 0:00:24]}  Ra1+ {[%clk 0:00:24]} 34. Kg2 {[%clk 0:00:24]}  Rxh1 {[%clk 0:00:23]} 35. Kxh1 {[%clk 0:00:25]}  Rh7+ {[%clk 0:00:22]} 36. Kg2 {[%clk 0:00:25]}  Qe1 {[%clk 0:00:16]} 37. Bf1 {[%clk 0:00:25]}  Qe4+ {[%clk 0:00:14]} 38. f3 {[%clk 0:00:24]}  Qc2+ {[%clk 0:00:11]} 39. Kg1 {[%clk 0:00:24]}  Qc5+ {[%clk 0:00:10]} 40. Kg2 {[%clk 0:00:17]}  Qc2+ {[%clk 0:00:10]} 41. Kg1 {[%clk 0:00:12]}  Qc5+ {[%clk 0:00:09]} 42. Kg2 {[%clk 0:00:12]}  Qc2+ {[%clk 0:00:09]} 1/2-1/2


[Site "https://www.chess.com"]